bitfinex-derivatives/quotes_ETHF0:USTF0_20240910
["timestamp","ask_amount","ask_price","bid_price","bid_amount"]
[1725958496930,2.04738,2355.2,2355.0,0.42459]
[1725958497135,0.82738,2355.2,2355.1,0.42458]
[1725958497527,2.04738,2355.2,2355.1,0.42458]
[1725958498036,2.04738,2355.2,2355.0,0.42459]
[1725958498335,2.04738,2355.2,2355.1,0.42458]
[1725958498631,1.6228,2355.2,2355.1,0.42458]
[1725958498936,1.42821,2355.5,2354.7,4.12878554]
[1725958498937,0.42455,2355.3,2355.2,0.42457]
[1725958499340,0.42455,2355.3,2355.1,0.42457]
[1725958500136,0.42457,2355.2,2355.1,0.42457]
[1725958500332,1.22,2355.2,2355.0,0.42459]
[1725958500544,0.4004,2355.1,2355.0,0.42459]
[1725958500830,0.82498,2355.1,2354.9,0.42461]
[1725958501035,0.3733,2355.0,2354.9,0.42461]
[1725958502227,6.861,2356.0,2354.9,1.22]
[1725958502228,0.098,2355.7,2354.9,1.22]
[1725958502434,0.42451,2355.5,2355.3,0.42454]
[1725958502747,0.42453,2355.4,2355.3,0.42454]
[1725958503040,0.42453,2355.4,2355.2,0.42455]
[1725958503337,0.42455,2355.3,2355.1,0.7716]
[1725958503640,0.42454,2355.4,2355.2,0.42455]
[1725958504932,0.42455,2355.3,2355.2,0.42455]
[1725958505136,0.42454,2355.4,2355.2,0.42455]
[1725958506230,0.42455,2355.3,2355.2,0.42455]
[1725958506436,0.42455,2355.3,2355.2,0.42457]
[1725958506935,1.64454,2355.4,2355.2,0.42457]
[1725958507736,0.42455,2355.3,2355.2,0.42457]
[1725958508332,2.013,2355.6,2354.9,4.14838554]
[1725958508537,0.42453,2355.4,2355.3,0.42454]
[1725958508727,0.793,2355.6,2355.5,0.42451]
[1725958508930,0.42449,2355.6,2355.5,0.42451]
[1725958509540,0.42449,2355.7,2355.6,0.42449]
[1725958509732,0.4245,2355.6,2355.5,0.42451]
[1725958509932,0.4245,2355.6,2355.5,0.4245]
[1725958511244,1.9741,2355.8,2355.5,0.4245]
[1725958511636,0.42449,2355.6,2355.5,0.4245]
[1725958512144,1.22,2355.6,2355.3,0.42454]
[1725958512440,0.42453,2355.4,2355.3,0.42454]
[1725958512644,0.42455,2355.3,2355.2,0.42456]
[1725958512848,1.20815,2355.3,2355.2,0.42456]
[1725958513538,1.20815,2355.3,2355.1,0.42457]
[1725958513738,1.20815,2355.3,2355.2,0.42457]
[1725958513937,1.20815,2355.3,2355.1,0.42457]
[1725958514338,0.42457,2355.2,2355.0,0.42459]
[1725958515142,0.7836,2355.3,2355.2,0.42457]
[1725958515347,1.20816,2355.3,2355.1,0.42458]
[1725958515641,0.42457,2355.2,2354.9,1.10785554]
[1725958515844,0.42457,2355.2,2355.1,0.42458]
[1725958516042,2.0036,2355.3,2354.9,1.10785554]
[1725958516246,2.42815,2355.3,2355.0,0.42459]
[1725958516448,2.42815,2355.3,2355.0,1.53244554]
[1725958516632,2.42815,2355.3,2355.0,0.42459]
[1725958516831,2.42815,2355.3,2355.0,1.53244554]
[1725958517847,1.64452,2355.5,2355.2,0.42457]
[1725958518147,1.64452,2355.5,2355.2,0.82787]
[1725958518846,1.64452,2355.5,2355.2,1.21157]
[1725958519045,1.64452,2355.5,2355.3,0.42455]
[1725958519248,1.64452,2355.5,2355.2,0.82786]
[1725958519439,1.64452,2355.5,2355.2,1.93571554]
[1725958519640,0.42453,2355.4,2355.2,1.51115554]
[1725958519839,1.64452,2355.5,2355.2,1.53242554]
[1725958520050,0.42454,2355.4,2355.1,1.53243554]
[1725958520239,0.42455,2355.3,2355.1,1.10785554]
[1725958520439,0.7779,2355.2,2355.1,1.10785554]
[1725958520640,0.7779,2355.2,2355.1,2.27760861]
[1725958521052,0.7779,2355.2,2355.1,1.77161979]
[1725958521347,1.20247,2355.2,2355.1,1.77161979]
[1725958521649,1.20247,2355.2,2355.1,2.19967836]
[1725958521847,1.20247,2355.2,2355.1,2.70566874]
[1725958522440,1.20247,2355.2,2355.1,1.16975463]
[1725958523239,6.66887,2355.2,2355.1,2.28200235]
[1725958523641,6.66887,2355.2,2355.0,1.11224772]
[1725958523642,0.42458,2355.1,2355.0,1.11224772]
[1725958523846,1.64458,2355.1,2355.0,2.2821592]
[1725958524140,1.64458,2355.1,2355.0,1.77612532]
[1725958524141,5.89098,2355.1,2355.0,1.77612532]
[1725958524643,5.89098,2355.1,2355.0,2.28216312]
[1725958525761,5.89098,2355.1,2355.0,0.6638776]
[1725958525961,0.4246,2355.0,2354.9,1.11224772]
[1725958526156,0.4246,2355.0,2354.9,2.28212526]
[1725958528065,0.4246,2355.0,2354.9,1.16987754]
[1725958529464,0.4246,2355.0,2354.9,2.28205881]
[1725958530168,0.42462,2354.9,2354.8,1.11218127]
[1725958530357,0.42462,2354.9,2354.8,1.77606994]
[1725958530564,0.42462,2354.9,2354.8,2.28211848]
[1725958531059,0.42462,2354.9,2354.8,1.16993721]
[1725958531256,0.42462,2354.9,2354.8,2.28207223]
[1725958531854,0.42462,2354.9,2354.8,1.16993721]
[1725958532361,0.42466,2354.7,2354.6,0.42467]
[1725958532560,0.82795,2354.8,2354.6,1.95083792]
[1725958532757,0.3645,2354.7,2354.6,0.42467]
[1725958532954,0.3645,2354.7,2354.6,1.95080475]
[1725958533165,0.3645,2354.7,2354.6,2.61470567]
[1725958533363,0.3645,2354.7,2354.6,3.12076262]
[1725958534057,0.78916,2354.7,2354.6,2.69609262]
[1725958534274,0.78916,2354.7,2354.6,1.16995787]
[1725958535262,4.50081,2354.7,2354.6,2.28204193]
[1725958535464,8.74801,2354.7,2354.6,2.28204193]
[1725958535668,8.32335,2354.7,2354.4,1.11208406]
[1725958535863,4.07615,2354.7,2354.4,1.11208406]
[1725958536058,0.42469,2354.5,2354.4,1.11208406]
[1725958536665,0.42469,2354.5,2354.4,1.17007553]
[1725958537075,0.42469,2354.5,2354.4,2.28201746]
[1725958537773,14.38363,2354.5,2354.4,0.50609341]
[1725958537974,0.42473,2354.3,2354.2,1.11194193]
[1725958538273,0.42473,2354.3,2354.2,2.70685319]
[1725958538463,4.67273,2354.3,2354.2,2.70685319]
[1725958538666,5.06053,2354.3,2354.2,2.70684107]
[1725958538867,5.06053,2354.3,2354.2,1.59489914]
[1725958539470,0.4247,2354.5,2354.2,1.17014914]
[1725958539677,0.4247,2354.5,2354.4,1.53575379]
[1725958539867,0.42469,2354.6,2354.5,0.42469]
[1725958540067,0.42469,2354.6,2354.5,1.53568038]
[1725958540477,0.7616,2354.8,2354.5,1.53568038]
[1725958540665,1.18625,2354.8,2354.7,0.42466]
[1725958540867,0.42466,2354.7,2354.6,1.53566038]
[1725958541175,1.18625,2354.8,2354.6,2.70559786]
[1725958541474,0.79845,2354.8,2354.7,2.70531914]
[1725958541977,0.79845,2354.8,2354.7,2.28065914]
[1725958542966,0.79845,2354.8,2354.7,2.70531914]
[1725958543274,0.79845,2354.8,2354.7,1.11074552]
[1725958543663,0.42466,2354.7,2354.6,1.53540552]
[1725958543865,0.42466,2354.7,2354.6,0.42466]
[1725958544076,0.42466,2354.7,2354.6,1.08854432]
[1725958544265,0.42466,2354.7,2354.6,1.59459094]
[1725958544469,0.42466,2354.7,2354.6,1.77454757]
[1725958544668,0.42466,2354.7,2354.6,1.11066325]
[1725958545469,8.38351,2354.7,2354.6,1.11066325]
[1725958546667,0.42467,2354.6,2354.5,1.11066325]
[1725958546975,0.80607,2354.6,2354.5,1.11066325]
[1725958551479,0.42469,2354.5,2354.4,1.11066325]
[1725958556484,0.42471,2354.5,2354.3,1.53538325]
[1725958556779,0.42471,2354.5,2354.4,1.11066325]
[1725958557170,0.42471,2354.5,2354.4,1.7746247]
[1725958557373,0.42471,2354.5,2354.4,2.28070818]
[1725958557585,0.42471,2354.4,2354.3,1.53538325]
[1725958557775,0.42471,2354.4,2354.3,2.70546308]
[1725958557968,0.42471,2354.4,2354.3,1.59479983]
[1725958558174,0.42471,2354.5,2354.3,1.59478983]
[1725958558382,0.80609,2354.6,2354.4,2.28106601]
[1725958558678,1.43541,2354.8,2354.5,1.11098618]
[1725958558887,0.42469,2354.6,2354.5,1.11098618]
[1725958560281,0.42469,2354.6,2354.5,2.19960324]
[1725958560584,1.16815,2354.8,2354.5,2.6938915]
[1725958560774,0.42465,2354.8,2354.6,3.07450911]
[1725958560981,0.42466,2354.7,2354.6,1.90451507]
[1725958561192,0.42466,2354.7,2354.6,3.07444792]
[1725958561782,0.42465,2354.8,2354.6,3.07444792]
[1725958561984,0.42466,2354.7,2354.6,1.90451507]
[1725958562182,0.42466,2354.7,2354.6,3.07445312]
[1725958563582,0.42466,2354.7,2354.6,3.07487029]
[1725958564078,0.42466,2354.7,2354.6,1.96340805]
[1725958564787,0.7718,2355.0,2354.6,1.53873805]
[1725958564972,0.42462,2355.0,2354.9,1.53629404]
[1725958565177,0.42462,2355.0,2354.9,2.28161209]
[1725958566391,1.64462,2355.0,2354.9,2.28161209]
[1725958566582,2.39912,2355.0,2354.9,2.28161209]
[1725958567292,2.39912,2355.0,2354.9,1.16993805]
[1725958567482,1.17912,2355.0,2354.9,1.59455805]
[1725958567785,0.4246,2355.0,2354.9,1.16993805]
[1725958568288,0.4246,2355.0,2354.9,1.59455805]
[1725958568487,0.4246,2355.0,2354.9,2.691961]
[1725958568686,0.4246,2355.1,2354.9,3.116581]
[1725958568885,0.4246,2355.1,2355.0,2.2821811]
[1725958569077,0.4246,2355.1,2355.0,1.16993805]
[1725958569277,0.7545,2355.2,2354.8,2.08641331]
[1725958569278,0.42461,2355.0,2354.8,2.08641331]
[1725958569486,0.42461,2355.0,2354.9,1.52203338]
[1725958569683,0.42461,2355.0,2354.9,2.18584002]
[1725958570183,0.7545,2355.2,2354.9,2.69185009]
[1725958570391,1.17907,2355.2,2355.1,1.11228611]
[1725958570689,2.39907,2355.2,2355.1,2.28210282]
[1725958571993,6.64547,2355.2,2355.1,2.28210282]
[1725958572292,6.64547,2355.2,2355.1,1.77609275]
[1725958572491,6.64547,2355.2,2355.1,2.28209833]
[1725958573392,2.39907,2355.2,2355.1,1.77609275]
[1725958573689,6.64547,2355.2,2355.1,2.28210004]
[1725958573886,2.39907,2355.2,2355.1,2.28209573]
[1725958574084,6.64547,2355.2,2355.1,2.28209573]
[1725958574688,2.39907,2355.2,2355.1,2.28209573]
[1725958574888,2.39907,2355.2,2355.1,1.77609275]
[1725958575190,0.42455,2355.4,2355.1,2.28209634]
[1725958575489,0.42454,2355.4,2355.2,2.2816497]
[1725958575695,0.42455,2355.4,2355.3,2.2815355]
[1725958575991,1.9896,2355.5,2355.2,1.11183947]
[1725958576191,2.41412,2355.5,2355.3,0.42454]
[1725958576393,2.41412,2355.5,2355.3,1.53637947]
[1725958576687,0.42453,2355.4,2355.3,1.11183947]
[1725958576988,0.42453,2355.4,2355.2,1.53639947]
[1725958577184,2.41412,2355.5,2355.3,0.42454]
[1725958577585,0.42454,2355.4,2355.2,1.53639947]
[1725958579789,2.41412,2355.5,2355.3,0.42455]
[1725958579994,1.9896,2355.5,2355.4,0.42453]
[1725958580287,1.9896,2355.5,2355.2,1.11183947]
[1725958580288,2.41412,2355.5,2355.3,0.42454]
[1725958582192,2.41412,2355.5,2355.1,2.33183947]
[1725958582595,1.22,2355.7,2355.5,0.42451]
[1725958582790,0.8032,2355.6,2355.4,0.42452]
[1725958582984,0.8032,2355.6,2355.4,1.53635947]
[1725958583289,0.42451,2355.5,2355.4,0.42452]
[1725958584194,0.8032,2355.6,2355.2,2.33183947]
[1725958584498,0.42451,2355.5,2355.4,0.42452]
[1725958584909,0.3787,2355.6,2355.4,0.42452]
[1725958585399,0.8032,2355.6,2355.4,1.64452]
[1725958585694,0.8032,2355.6,2355.5,0.42451]
[1725958585895,0.42449,2355.7,2355.5,0.4245]
[1725958586194,0.42449,2355.7,2355.5,0.7536]
[1725958586398,0.42449,2355.7,2355.5,1.1781]
[1725958587399,0.7377,2355.9,2355.5,0.7536]
[1725958587594,0.7377,2355.9,2355.5,1.9736]
[1725958587793,0.42447,2355.8,2355.6,0.42449]
[1725958590501,1.9577,2355.9,2355.5,0.7536]
[1725958590799,0.42446,2355.8,2355.6,0.42448]
[1725958592297,1.9577,2355.9,2355.6,0.42448]
[1725958592599,0.42446,2355.8,2355.6,0.42448]
[1725958592794,1.9577,2355.9,2355.5,1.9736]
[1725958592991,0.42442,2356.1,2355.8,0.42446]
[1725958593296,0.42442,2356.0,2355.8,1.64446]
[1725958594101,0.4244,2356.1,2355.8,1.64445]
[1725958594496,0.4244,2356.1,2355.8,1.64444]
[1725958594801,0.42442,2356.0,2355.8,1.64444]
[1725958595702,0.42442,2356.0,2355.5,0.098]
[1725958595703,1.22,2356.0,2355.5,0.098]
[1725958595890,0.7858,2356.2,2355.3,4.50654]
[1725958595891,1.22,2355.6,2355.3,4.50654]
[1725958596093,1.22,2355.6,2355.3,0.42454]
[1725958596094,0.7646,2355.5,2355.3,0.42454]
[1725958596400,0.7646,2355.5,2355.4,0.42453]
[1725958607002,1.22,2355.8,2355.4,1.22]
[1725958607207,1.64445,2355.9,2355.7,0.42446]
[1725958607604,0.7616,2356.0,2355.7,1.22]
[1725958607605,1.18603,2356.0,2355.7,1.22]
[1725958607907,1.18603,2356.0,2355.8,0.42446]
[1725958608602,0.42444,2355.9,2355.8,0.42446]
[1725958609001,1.18604,2356.0,2355.8,0.42446]
[1725958609408,1.18604,2356.0,2355.9,0.42444]
[1725958609909,0.42439,2356.2,2355.9,5.4648]
[1725958610206,0.42439,2356.2,2356.0,0.42441]
[1725958610207,0.7799,2356.1,2356.0,0.42441]
[1725958610809,1.20432,2356.1,2355.9,0.42443]
[1725958612209,0.7799,2356.1,2355.9,0.42443]
[1725958612411,1.20432,2356.1,2355.9,0.42443]
[1725958613210,0.42442,2356.0,2355.9,0.42443]
[1725958614812,1.20432,2356.1,2355.9,0.42443]
[1725958616213,0.42442,2356.0,2355.9,0.42443]
[1725958616413,1.20432,2356.1,2355.7,2.33053106]
[1725958617117,1.20432,2356.1,2355.9,0.42442]
[1725958617311,1.20432,2356.1,2356.0,0.42442]
[1725958618310,0.7799,2356.1,2356.0,0.42442]
[1725958618608,0.4244,2356.2,2356.0,0.42441]
[1725958618813,0.42439,2356.2,2356.0,0.42441]
[1725958619817,1.17108,2356.3,2356.0,0.3971]
[1725958620011,0.42439,2356.2,2356.1,0.42439]
[1725958620214,1.17108,2356.3,2356.1,0.42439]
[1725958620717,0.42439,2356.2,2356.1,0.42439]
[1725958622514,0.4244,2356.1,2356.0,1.22001]
[1725958622815,0.42442,2356.0,2355.9,0.42442]
[1725958623017,2.281,2356.2,2355.8,0.42445]
[1725958623210,0.367,2355.9,2355.8,0.42445]
[1725958623713,1.18114,2355.9,2355.6,2.33053106]
[1725958623908,1.18114,2355.9,2355.8,0.42446]
[1725958625020,0.7567,2355.9,2355.6,1.11053106]
[1725958625316,0.42448,2355.7,2355.5,4.082]
[1725958625515,0.42449,2355.6,2355.5,4.50651]
[1725958625722,0.42449,2355.6,2355.5,0.42451]
[1725958626211,0.42449,2355.6,2355.5,0.9304332]
[1725958626412,0.42449,2355.6,2355.5,1.59406076]
[1725958627612,0.42449,2355.6,2355.5,0.9304332]
[1725958627920,0.42449,2355.7,2355.5,1.08813157]
[1725958628116,0.42449,2355.7,2355.5,0.93043032]
[1725958628317,0.42449,2355.7,2355.5,0.42451]
[1725958628921,0.42447,2355.8,2355.6,0.42449]
[1725958629219,0.42447,2355.8,2355.5,1.11053106]
[1725958629220,0.42449,2355.6,2355.5,1.11053106]
[1725958629425,0.42449,2355.6,2355.5,2.68661359]
[1725958629717,0.42449,2355.6,2355.5,1.11232843]
[1725958630219,0.42451,2355.5,2355.4,1.11232843]
[1725958630424,0.42451,2355.5,2355.3,1.66579659]
[1725958630425,0.42453,2355.4,2355.3,1.11232843]
[1725958630614,0.42455,2355.3,2355.2,1.11232843]
[1725958630821,1.64455,2355.3,2355.2,1.11232843]
[1725958631016,0.42457,2355.2,2355.1,1.11232843]
[1725958631216,0.42457,2355.2,2355.1,2.18094831]
[1725958631421,0.42457,2355.2,2355.1,2.28219227]
[1725958631621,0.42457,2355.2,2355.1,2.28188495]
[1725958631926,0.42457,2355.2,2355.1,1.16974902]
[1725958632430,0.42457,2355.2,2355.1,2.2819122]
[1725958633630,0.42457,2355.2,2355.1,1.77591831]
[1725958633934,0.42457,2355.2,2355.1,1.11215679]
[1725958634121,0.42457,2355.2,2355.1,1.77593406]
[1725958634325,0.42457,2355.2,2355.1,1.11215679]
[1725958634833,0.42458,2355.1,2354.9,1.11215679]
[1725958635132,0.81981,2355.0,2354.9,1.11149503]
[1725958635519,0.42462,2354.9,2354.8,1.11149503]
[1725958635720,0.42462,2354.9,2354.8,1.77535745]
[1725958635925,0.42462,2354.9,2354.8,2.28138588]
[1725958636127,0.42462,2354.9,2354.8,1.11149503]
[1725958637424,0.42462,2354.9,2354.7,1.53615503]
[1725958639637,0.81981,2355.0,2354.8,0.42463]
[1725958640733,0.42462,2354.9,2354.8,0.42463]
[1725958642426,0.3952,2355.0,2354.9,0.42462]
[1725958643437,0.81981,2355.0,2354.7,0.3934]
[1725958643738,0.81981,2355.0,2354.9,0.42462]
[1725958643933,0.81981,2355.0,2354.8,0.42462]
[1725958644332,0.81981,2355.0,2354.9,0.42462]
[1725958644534,0.81981,2355.0,2354.8,0.42463]
[1725958644843,0.42462,2354.9,2354.7,0.42464]
[1725958645932,0.42462,2354.9,2354.8,0.42464]
[1725958646640,0.42462,2354.9,2354.7,0.42465]
[1725958647438,0.42465,2354.8,2354.6,0.42466]
[1725958647629,0.4004,2354.7,2354.6,0.42466]
[1725958647937,0.4004,2354.7,2354.5,0.3938]
[1725958647938,1.64463,2354.9,2354.7,0.42466]
[1725958648137,0.098,2355.5,2353.9,0.4248]
[1725958648138,0.42475,2354.2,2353.9,0.4248]
[1725958648341,0.7813,2354.6,2353.9,1.22]
[1725958648552,0.3803,2354.6,2354.5,0.42469]
[1725958648935,0.4246,2355.1,2354.8,0.42462]
[1725958649233,2.04149,2355.1,2354.6,0.7592]
[1725958649433,0.4246,2355.0,2354.8,0.42463]
[1725958649643,0.4246,2355.0,2354.7,0.42464]
[1725958650534,0.42462,2354.9,2354.7,0.42464]
[1725958650735,0.42462,2354.9,2354.6,1.18386]
[1725958650937,0.42462,2354.9,2354.6,1.18387]
[1725958651136,0.42462,2354.9,2354.6,0.18387]
[1725958651439,0.81904,2354.8,2354.6,0.18387]
[1725958651639,0.3944,2354.8,2354.6,0.18387]
[1725958652944,0.81905,2354.8,2354.6,0.18387]
[1725958653644,0.81905,2354.8,2354.5,0.42468]
[1725958653845,2.67601,2354.8,2354.4,0.4247]
[1725958654040,0.3697,2354.7,2354.4,0.4247]
[1725958654239,0.79437,2354.7,2354.4,0.4247]
[1725958654438,0.42467,2354.6,2354.3,0.368]
[1725958655846,0.42467,2354.6,2354.4,0.42471]
[1725958657842,0.79437,2354.7,2354.4,0.42471]
[1725958658240,1.6144,2354.8,2354.4,1.22]
[1725958658241,0.3944,2354.8,2354.4,1.22]
[1725958658451,0.42463,2354.9,2354.6,0.42466]
[1725958659746,0.4026,2355.1,2355.0,0.4246]
[1725958659954,0.78836,2355.3,2355.1,0.42458]
[1725958660151,0.42456,2355.3,2355.0,0.42459]
[1725958660449,0.42457,2355.2,2355.0,0.42459]
[1725958660843,0.4026,2355.4,2354.8,1.84777854]
[1725958660844,0.42459,2355.1,2354.8,3.06777854]
[1725958661044,0.42459,2355.1,2354.8,2.38342]
[1725958661245,0.42459,2355.1,2354.8,1.5912]
[1725958661458,0.3757,2355.0,2354.8,2.01582]
[1725958663245,0.3757,2355.0,2354.9,0.42462]
[1725958664155,0.80031,2355.0,2354.8,2.01583]
[1725958664347,0.80031,2355.0,2354.9,0.42462]
[1725958664548,0.3757,2355.0,2354.9,0.42462]
[1725958666251,2.64512,2355.5,2354.9,1.22]
[1725958666563,0.42457,2355.2,2355.0,0.4246]
[1725958666855,1.22,2355.3,2355.0,0.4246]
[1725958667157,0.42458,2355.1,2355.0,0.4246]
[1725958668856,0.42458,2355.1,2354.9,1.53358854]
[1725958669256,0.42459,2355.1,2354.9,1.10897854]
[1725958669458,0.42459,2355.1,2354.9,1.53358854]
[1725958671557,0.42459,2355.1,2355.0,2.27878744]
[1725958671961,0.42459,2355.1,2355.0,1.61498547]
[1725958672265,0.42459,2355.1,2355.0,1.77277688]
[1725958672557,0.42459,2355.1,2355.0,2.27878206]
[1725958673658,0.42459,2355.1,2355.0,2.70338206]
[1725958674461,0.42459,2355.1,2355.0,2.27878206]
[1725958674759,0.42459,2355.1,2355.0,2.70338206]
[1725958675266,1.70598,2355.3,2355.0,2.70338206]
[1725958675461,0.42457,2355.2,2355.1,1.10897854]
[1725958675657,0.42457,2355.2,2355.1,2.27878585]
[1725958678767,0.42457,2355.2,2355.1,1.61498495]
[1725958678972,0.42457,2355.2,2355.1,1.10897854]
[1725958679179,0.42457,2355.2,2355.1,1.77278063]
[1725958679374,0.42457,2355.2,2355.1,2.27878761]
[1725958680464,0.42457,2355.2,2355.1,2.70336761]
[1725958680667,0.42457,2355.2,2355.1,2.27878761]
[1725958682573,0.42457,2355.2,2355.1,2.70336761]
[1725958682772,0.42457,2355.2,2355.1,2.27878761]
[1725958683076,0.42457,2355.2,2355.1,2.27878053]
[1725958684576,0.42457,2355.2,2355.1,1.10897854]
[1725958684871,0.42457,2355.2,2355.1,2.27876546]
[1725958686968,0.42457,2355.2,2355.1,2.70334546]
[1725958688877,0.42457,2355.2,2355.1,2.27876546]
[1725958690079,0.42457,2355.2,2355.1,2.70334546]
[1725958691276,0.42457,2355.2,2355.1,1.53355854]
[1725958691579,0.42457,2355.2,2355.1,2.70334255]
[1725958691770,0.42457,2355.2,2355.1,2.27876255]
[1725958691967,0.42457,2355.2,2355.1,2.70334255]
[1725958694172,0.42457,2355.2,2355.1,2.27876255]
[1725958694581,0.42457,2355.2,2355.1,2.2787747]
[1725958694777,0.42457,2355.2,2355.1,2.28238154]
[1725958694977,0.42457,2355.2,2355.1,1.16979616]
[1725958695878,0.42457,2355.2,2355.1,1.59437616]
[1725958696871,0.42457,2355.2,2355.1,2.70697452]
[1725958697572,0.42462,2354.9,2354.8,1.11259836]
[1725958697773,1.48618,2354.9,2354.8,1.17005714]
[1725958697979,5.73258,2354.9,2354.8,1.17005714]
[1725958698685,1.06178,2354.4,2354.1,0.114]
[1725958698981,1.06169,2354.6,2353.7,1.55543975]
[1725958699172,0.4116581,2354.9,2354.2,1.11277942]
[1725958699382,0.4116581,2354.9,2354.1,1.22]
[1725958699383,1.22,2354.6,2354.3,1.86267942]
[1725958699577,1.64468,2354.6,2354.3,1.86267942]
[1725958699787,1.22,2354.5,2354.4,1.11277942]
[1725958701570,1.22,2354.5,2354.3,1.86267942]
[1725958703576,0.7433,2355.0,2354.3,3.08267942]
[1725958703781,1.22,2354.8,2354.4,1.11277942]
[1725958704177,1.22,2354.8,2354.5,1.11277942]
[1725958704386,0.42463,2354.9,2354.5,1.11277942]
[1725958704687,0.099,2355.2,2354.5,1.11277942]
[1725958704985,1.6446,2355.0,2354.7,1.11277942]
[1725958705183,1.6446,2355.0,2354.8,0.7791]
[1725958706174,0.42462,2354.9,2354.8,0.7791]
[1725958709484,0.42462,2354.9,2354.8,0.3836]
[1725958710579,0.42467,2354.6,2354.5,1.11277942]
[1725958710779,0.42467,2354.6,2354.5,0.3867]
[1725958710780,1.64467,2354.6,2354.5,0.3867]
[1725958712992,0.42475,2354.2,2354.1,5.19477942]
[1725958713191,0.42475,2354.2,2354.1,2.27348413]
[1725958713685,2.66554,2354.5,2354.1,2.27348413]
[1725958713686,0.42474,2354.3,2354.1,2.27348413]
[1725958713885,0.42474,2354.3,2354.1,1.11277942]
[1725958714090,0.42474,2354.3,2354.1,0.11277942]
[1725958714286,1.64474,2354.3,2354.2,0.7628]
[1725958714590,1.64474,2354.3,2354.2,0.3699]
[1725958717096,0.42478,2354.0,2353.9,0.3929]
[1725958717288,0.42478,2354.0,2353.8,0.3739]
[1725958717289,0.4248,2353.9,2353.8,0.3739]
[1725958719289,0.42482,2353.8,2353.7,0.44266033]
[1725958719483,2.70687,2353.8,2353.7,0.44266033]
[1725958720084,0.42482,2353.8,2353.7,0.44266033]
[1725958720487,0.099,2354.4,2353.7,5.91146033]
[1725958720793,1.22,2354.5,2353.9,0.42479]
[1725958720986,0.42471,2354.4,2354.0,1.64478]
[1725958721184,0.42473,2354.4,2354.0,1.22]
[1725958721391,0.42474,2354.3,2354.1,0.3752]
[1725958721587,0.42473,2354.3,2354.2,0.3739]
[1725958721895,1.64472,2354.4,2354.2,0.3739]
[1725958722897,1.22,2354.6,2354.2,0.3739]
[1725958723089,1.64471,2354.4,2354.2,0.3739]
[1725958724391,0.42473,2354.3,2354.2,0.3739]
[1725958724690,1.64473,2354.4,2354.2,0.3739]
[1725958724885,0.42473,2354.3,2354.2,0.3739]
[1725958725794,1.64472,2354.4,2354.2,0.3739]
[1725958726497,1.22,2354.4,2354.2,0.3739]
[1725958726697,0.42471,2354.4,2354.2,0.3739]
[1725958726900,1.64472,2354.4,2354.2,0.3739]
[1725958727091,0.42473,2354.3,2354.2,0.3739]
[1725958727395,1.64472,2354.4,2354.2,0.3739]
[1725958727598,0.42473,2354.3,2354.2,0.3739]
[1725958727802,1.64472,2354.4,2354.2,0.3739]
[1725958728896,1.22,2354.4,2354.2,0.3739]
[1725958729398,1.22,2354.4,2354.2,0.79864]
[1725958729593,1.64467,2354.6,2354.2,0.3739]
[1725958729899,1.22,2354.6,2354.3,0.42473]
[1725958730300,1.64468,2354.6,2354.2,2.01864]
[1725958730499,1.22,2354.6,2354.3,0.42473]
[1725958730694,1.64468,2354.6,2354.2,2.01863]
[1725958730999,1.64469,2354.6,2354.2,2.01864]
[1725958731897,1.64469,2354.6,2354.3,0.42473]
[1725958732196,1.22,2354.6,2354.3,0.42473]
[1725958732395,1.22,2354.6,2354.2,1.5939]
[1725958732593,1.64466,2354.7,2354.3,0.42472]
[1725958732997,0.42468,2354.6,2354.3,0.42472]
[1725958733301,1.22,2354.7,2354.4,0.4247]
[1725958733499,0.42463,2354.9,2354.5,1.64468]
[1725958733691,0.42463,2354.9,2354.6,0.7511]
[1725958733993,0.42462,2354.9,2354.6,1.17577]
[1725958734991,1.64462,2355.0,2354.6,1.17577]
[1725958735193,1.64461,2355.0,2354.6,1.17576]
[1725958735596,0.42462,2354.9,2354.6,1.17576]
[1725958735790,1.64461,2355.0,2354.6,1.17576]
[1725958735994,0.42461,2355.0,2354.7,0.42465]
[1725958736194,0.42461,2355.0,2354.6,1.17576]
[1725958736492,0.42462,2354.9,2354.6,1.17576]
[1725958739302,0.42462,2354.9,2354.7,0.66386759]
[1725958739498,0.42462,2354.9,2354.6,1.17576]
[1725958739705,0.42462,2354.9,2354.7,1.16042697]
[1725958739896,0.42462,2354.9,2354.6,1.17576]
[1725958740202,0.42462,2354.9,2354.7,1.16042163]
[1725958740504,0.42462,2354.9,2354.6,1.17576]
[1725958743301,0.42462,2354.9,2354.6,0.7511]
[1725958743498,0.42462,2354.9,2354.6,1.17576]
[1725958743895,1.64462,2354.9,2354.6,1.17576]
[1725958744103,0.42464,2354.8,2354.6,1.17576]
[1725958744300,1.64463,2354.9,2354.7,0.42465]
[1725958744503,1.64463,2354.9,2354.6,1.17577]
[1725958744705,1.64463,2354.9,2354.7,0.42466]
[1725958744912,1.64463,2354.9,2354.6,0.7511]
[1725958745205,1.64463,2354.9,2354.6,1.17576]
[1725958745798,1.64463,2354.9,2354.7,0.42466]
[1725958746007,1.64463,2354.9,2354.6,1.17576]
[1725958747298,1.64463,2354.9,2354.7,0.42466]
[1725958749600,1.64463,2354.9,2354.6,1.17576]
[1725958750100,0.42464,2354.8,2354.6,1.17577]
[1725958750316,1.22,2354.9,2354.6,0.7511]
[1725958750500,0.82144,2354.8,2354.6,1.17577]
[1725958750703,1.64463,2354.9,2354.6,0.7511]
[1725958750899,1.6069,2355.1,2354.7,0.42465]
[1725958751307,1.64463,2354.9,2354.7,0.42465]
[1725958751606,1.64463,2354.9,2354.6,1.17576]
[1725958752107,1.64463,2354.9,2354.7,0.3796]